Workbook

Sheet Лист1
A1: Школа | C1: ГКОУ "МОЦО№2" | F1: Утвердил: | G1: должность | H1: Директор
A2: Типовое примерное меню приготавливаемых блюд | G2: фамилия | H2: Павлова Н.В.
A3: Возрастная категория | E3: 7-11 лет | G3: дата | H3: 1 | I3: 2 | J3: 2024
H4: день | I4: месяц | J4: год
A5: Неделя | B5: День недели | C5: Прием пищи | D5: Раздел меню | E5: Блюда | F5: Вес блюда, г | G5: Белки | H5: Жиры | I5: Углеводы | J5: Калорийность | K5: № рецептуры | L5: Цена
A6: 1 | B6: 1 | C6: Завтрак | D6: гор.блюдо | E6: каша "Дружба" | F6: 200 | G6: 6.2 | H6: 8 | I6: 26.8 | J6: 224 | K6: 190 | L6: 21.16
D8: гор.напиток | E8: какао с молоком | F8: 200 | G8: 1.64 | H8: 1.21 | I8: 23.05 | J8: 117.96 | K8: 432 | L8: 11.79
D9: фрукты | E9: фрукт | F9: 100 | G9: 1.5 | H9: 0.5 | I9: 13.87 | J9: 92 | L9: 54
D10: хлеб | E10: батон с сыром | F10: 45 | G10: 5.23 | H10: 8.13 | I10: 12.04 | J10: 171.52 | K10: 1 | L10: 35.23
D12: итого | F12: =SUM(F6:F11) -> 545 | G12: =SUM(G6:G11) -> 14.57 | H12: 18.54 | I12: =SUM(I6:I11) -> 75.76 | J12: =SUM(J6:J11) -> 605.48 | L12: =SUM(L6:L11) -> 122.18
A13: =A6 -> 1 | B13: =B6 -> 1 | C13: Обед | D13: закуска | E13: помидор свежий | F13: 60 | G13: 0.55 | H13: 0.1 | I13: 1.9 | J13: 12 | L13: 12.98
D14: 1 блюдо | E14: рассольник ленинградский со сметаной | F14: 250 | G14: 14.13 | H14: 13.14 | I14: 13.14 | J14: 232.42 | K14: 74 | L14: 28.92
D15: 2 блюдо | E15: котлета особая | F15: 90 | G15: 13.03 | H15: 15.33 | I15: 6.73 | J15: 216.9 | K15: 105 | L15: 49.23
D16: гарнир | E16: пюре картофельное | F16: 150 | G16: 3.12 | H16: 17.1 | I16: 20.95 | J16: 250.3 | K16: 128 | L16: 30
D17: напиток | E17: кисель | F17: 200 | G17: 0.1 | H17: 0.1 | I17: 27.9 | J17: 113 | K17: 411 | L17: 8.82
D18: хлеб бел. | E18: пшеничный | F18: 30 | G18: 2.28 | H18: 0.24 | I18: 14.76 | J18: 70.5 | L18: 5.46
D19: хлеб черн. | E19: ржаной | F19: 30 | G19: 2.56 | H19: 0.99 | I19: 14.49 | J19: 77.7 | L19: 5.34
D22: итого | F22: =SUM(F13:F21) -> 810 | G22: =SUM(G13:G21) -> 35.77 | H22: =SUM(H13:H21) -> 47 | I22: =SUM(I13:I21) -> 86.73 | J22: =SUM(J13:J21) -> 972.82 | L22: =SUM(L13:L21) -> 140.75
A23: =A6 -> 1 | B23: =B6 -> 1 | C23: Итого за день: | F23: =F12+F22 -> 1355 | G23: =G12+G22 -> 50.34 | H23: =H12+H22 -> 65.54 | I23: =I12+I22 -> 162.49 | J23: =J12+J22 -> 1578.3 | L23: =L12+L22 -> 262.93
A24: 1 | B24: 2 | C24: Завтрак | D24: гор.блюдо | E24: омлет | F24: 160 | G24: 10.35 | H24: 15.06 | I24: 4.22 | J24: 284.45 | K24: 210 | L24: 21.25
D25: закуска | E25: икра кабачковая консервированная | F25: 60 | G25: 0.95 | H25: 2.25 | I25: 2.85 | J25: 59.5 | L25: 6.5
D26: гор.напиток | E26: чай с сахаром и лимоном | F26: 215 | G26: 0.22 | H26: 2.06 | I26: 12.3 | J26: 60.09 | K26: 431 | L26: 29.6
D27: хлеб | E27: батон | F27: 25 | G27: 1.94 | H27: 0.7 | I27: 12.85 | J27: 65.6 | L27: 4.5
D28: фрукты | E28: фрукт | F28: 200 | G28: 1.8 | H28: 0.4 | I28: 14.2 | J28: 86 | L28: 39.51
D31: итого | F31: =SUM(F24:F30) -> 660 | G31: =SUM(G24:G30) -> 15.26 | H31: =SUM(H24:H30) -> 20.47 | I31: =SUM(I24:I30) -> 46.42 | J31: =SUM(J24:J30) -> 555.64 | L31: =SUM(L24:L30) -> 101.36
A32: =A24 -> 1 | B32: =B24 -> 2 | C32: Обед | D32: закуска | E32: салат из свеклы отварной | F32: 60 | G32: 0.84 | H32: 3.66 | I32: 4.07 | J32: 56.07 | K32: 52 | L32: 5.41
D33: 1 блюдо | E33: суп с макаронными изделиями и картофелем | F33: 250 | G33: 4.32 | H33: 0.67 | I33: 97.05 | J33: 197.5 | K33: 100 | L33: 28.3
D34: 2 блюдо | E34: голубцы ленивые | F34: 240 | G34: 16.66 | H34: 15.87 | I34: 13.68 | J34: 265.32 | K34: 298 | L34: 90
D35: гарнир
D36: напиток | E36: компот из свежих плодов | F36: 200 | G36: 0.16 | H36: 0.16 | I36: 27.03 | J36: 111.13 | K36: 342.1 | L36: 21.63
D37: хлеб бел. | E37: пшеничный | F37: 30 | G37: 2.28 | H37: 0.24 | I37: 14.76 | J37: 70.5 | L37: 5.46
D38: хлеб черн. | E38: ржаной | F38: 30 | G38: 2.55 | H38: 0.99 | I38: 14.49 | J38: 77.7 | L38: 5.34
D41: итого | F41: =SUM(F32:F40) -> 810 | G41: =SUM(G32:G40) -> 26.81 | H41: =SUM(H32:H40) -> 21.59 | I41: =SUM(I32:I40) -> 171.08 | J41: =SUM(J32:J40) -> 778.22 | L41: =SUM(L32:L40) -> 156.14
A42: =A24 -> 1 | B42: =B24 -> 2 | C42: Итого за день: | F42: =F31+F41 -> 1470 | G42: =G31+G41 -> 42.07 | H42: =H31+H41 -> 42.06 | I42: =I31+I41 -> 217.5 | J42: =J31+J41 -> 1333.86 | L42: =L31+L41 -> 257.5
A43: 1 | B43: 3 | C43: Завтрак | D43: гор.блюдо | E43: каша вязкая молочная из пшенной, овсяной, гречневой и других круп | F43: 200 | G43: 8.55 | H43: 8.44 | I43: 36.41 | J43: 283.33 | K43: 173 | L43: 21.16
D44: гор.напиток | E44: чай с сахаром | F44: 200 | G44: 0 | H44: 0 | I44: 13.49 | J44: 58.05 | K44: 430 | L44: 2.75
D45: хлеб | E45: батон с маслом | F45: 45 | G45: 1.87 | H45: 0.7 | I45: 12.85 | J45: 65.5 | L45: 4.5
D46: фрукты | E46: фрукт | F46: 100 | G46: 0.39 | H46: 0.29 | I46: 9.5 | J46: 91.18 | L46: 23.93
D47: кисломол. | E47: йогурт фруктовый | F47: 150 | G47: 3 | H47: 2 | I47: 4.5 | J47: 72 | L47: 44.55
D49: итого | F49: =SUM(F43:F48) -> 695 | G49: =SUM(G43:G48) -> 13.81 | H49: =SUM(H43:H48) -> 11.43 | I49: =SUM(I43:I48) -> 76.75 | J49: 570.06 | L49: =SUM(L43:L48) -> 96.89
A50: =A43 -> 1 | B50: =B43 -> 3 | C50: Обед | D50: закуска | E50: винегрет овощной | F50: 60 | G50: 0.67 | H50: 5.08 | I50: 3.33 | J50: 61.5 | K50: 51 | L50: 9.49
D51: 1 блюдо | E51: борщ с мясом | F51: 250 | G51: 8.34 | H51: 10.28 | I51: 16.49 | J51: 195.1 | K51: 62 | L51: 43.67
D52: 2 блюдо | E52: зразы рубленные из говядины | F52: 90 | G52: 8.6 | H52: 13.9 | I52: 9.81 | J52: 202.09 | K52: 274 | L52: 83.3
D53: гарнир | E53: каша гречневая рассыпчатая | F53: 150 | G53: 8.44 | H53: 5.51 | I53: 38.25 | J53: 236.07 | K53: 323 | L53: 14.49
D54: напиток | E54: компот из свежих плодов | F54: 200 | G54: 0.16 | H54: 0.16 | I54: 27.04 | J54: 111.12 | K54: 394 | L54: 22.71
D55: хлеб бел. | E55: пшеничный | F55: 30 | G55: 2.28 | H55: 0.24 | I55: 14.76 | J55: 70.5 | L55: 5.46
D56: хлеб черн. | E56: ржаной | F56: 30 | G56: 2.55 | H56: 0.99 | I56: 14.49 | J56: 77.7 | L56: 5.34
D59: итого | F59: =SUM(F50:F58) -> 810 | G59: =SUM(G50:G58) -> 31.04 | H59: =SUM(H50:H58) -> 36.16 | I59: =SUM(I50:I58) -> 124.17 | J59: =SUM(J50:J58) -> 954.08 | L59: =SUM(L50:L58) -> 184.46
A60: =A43 -> 1 | B60: =B43 -> 3 | C60: Итого за день: | F60: =F49+F59 -> 1505 | G60: =G49+G59 -> 44.85 | H60: =H49+H59 -> 47.59 | I60: =I49+I59 -> 200.92 | J60: =J49+J59 -> 1524.14 | L60: =L49+L59 -> 281.35
A61: 1 | B61: 4 | C61: Завтрак | D61: гор.блюдо | E61: запеканка из творога со сметаной | F61: 200 | G61: 28.02 | H61: 16.08 | I61: 23.04 | J61: 401.66 | K61: 79 | L61: 117.77
D62: гор.напиток | E62: кофейный напиток | F62: 200 | G62: 3.29 | H62: 3.3 | I62: 24.14 | J62: 139.68 | K62: 380 | L62: 11.79
D63: хлеб | E63: батон | F63: 25 | G63: 1.87 | H63: 0.7 | I63: 12.85 | J63: 65.5 | L63: 4.5
D64: фрукты | E64: фрукт | F64: 200 | G64: 1.6 | H64: 0.4 | I64: 15 | J64: 76 | L64: 29.25
D65: итого | F65: 625 | G65: 34.78 | H65: 21.48 | I65: 75.03 | J65: 682.84 | L65: 163.31
A69: =A61 -> 1 | B69: =B61 -> 4 | C69: Обед | D69: закуска | E69: овощи натуральные соленые | F69: 60 | G69: 1.05 | H69: 0 | I69: 2.3 | J69: 13.44 | K69: 70 | L69: 7.14
D70: 1 блюдо | E70: суп картофельный с бобовыми | F70: 250 | G70: 5.34 | H70: 5.36 | I70: 18.66 | J70: 146.99 | K70: 102 | L70: 30.12
D71: 2 блюдо | E71: котлеты или биточки рыбные | F71: 90 | G71: 14.76 | H71: 5.94 | I71: 5.4 | J71: 135 | K71: 241 | L71: 38.9
D72: гарнир | E72: макаронные изделия отварные | F72: 150 | G72: 4.76 | H72: 4.08 | I72: 30.4 | J72: 177.49 | K72: 331 | L72: 11.05
D74: напиток | E74: сок фруктовый | F74: 200 | G74: 0.58 | H74: 0.39 | I74: 31.62 | J74: 135.8 | K74: 442 | L74: 31.6
D75: хлеб бел. | E75: пшеничный | F75: 30 | G75: 2.28 | H75: 0.24 | I75: 14.76 | J75: 70.5 | L75: 5.46
D76: хлеб черн. | E76: ржаной | F76: 30 | G76: 2.55 | H76: 0.99 | I76: 14.49 | J76: 77.7 | L76: 5.34
D79: итого | F79: =SUM(F69:F78) -> 810 | G79: =SUM(G69:G78) -> 31.32 | H79: =SUM(H69:H78) -> 17 | I79: =SUM(I69:I78) -> 117.63 | J79: =SUM(J69:J78) -> 756.92 | L79: =SUM(L69:L78) -> 129.61
A80: =A61 -> 1 | B80: =B61 -> 4 | C80: Итого за день: | F80: =SUM(F79+F65) -> 1435 | G80: =SUM(G79+G65) -> 66.1 | H80: =SUM(H79+H65) -> 38.48 | I80: =SUM(I79+I65) -> 192.66 | J80: =SUM(J79+J65) -> 1439.76 | L80: =SUM(L79+L65) -> 292.92
A81: 1 | B81: 5 | C81: Завтрак | D81: гор.блюдо | E81: каша вязкая молочная из пшенной, овсяной, гречневой и других круп | F81: 200 | G81: 8.54 | H81: 9.23 | I81: 36.39 | J81: 283.06 | K81: 173 | L81: 22.17
D82: хлеб | E82: батон с сыром | F82: 60 | G82: 4.23 | H82: 8.13 | I82: 12.04 | J82: 171.52 | K82: 1 | L82: 19.8
D83: гор.напиток | E83: какао | F83: 200 | G83: 1.64 | H83: 1.21 | I83: 19.05 | J83: 117 | K83: 432 | L83: 11.79
D84: фрукты | E84: фрукт | F84: 100 | G84: 0.39 | H84: 0.19 | I84: 7.27 | J84: 45.59 | L84: 50
D87: итого | F87: =SUM(F81:F86) -> 560 | G87: =SUM(G81:G86) -> 14.8 | H87: =SUM(H81:H86) -> 18.76 | I87: =SUM(I81:I86) -> 74.75 | J87: =SUM(J81:J86) -> 617.17 | L87: =SUM(L81:L86) -> 103.76
A88: =A81 -> 1 | B88: =B81 -> 5 | C88: Обед | D88: закуска | E88: овощи натуральные соленые | F88: 60 | G88: 1.06 | H88: 0 | I88: 2.3 | J88: 13.44 | K88: 70 | L88: 7.14
D89: 1 блюдо | E89: свекольник с мясом и сметаной | F89: 250 | G89: 7.14 | H89: 10.93 | I89: 15.25 | J89: 194.15 | K89: 34 | L89: 48.2
D90: 2 блюдо | E90: жаркое по -домашнему | F90: 200 | G90: 18.91 | H90: 21.13 | I90: 19.77 | J90: 345.04 | K90: 259 | L90: 56.98
D92: напиток | E92: компот из сушеных плодов | F92: 200 | G92: 0 | H92: 0 | I92: 19.36 | J92: 77.41 | K92: 349 | L92: 7.76
D93: хлеб бел. | E93: пшеничный | F93: 30 | G93: 2.28 | H93: 0.24 | I93: 14.76 | J93: 70.5 | L93: 5.46
D94: хлеб черн. | E94: ржаной | F94: 30 | G94: 2.55 | H94: 0.99 | I94: 14.49 | J94: 77.7 | L94: 5.34
D97: итого | F97: =SUM(F88:F96) -> 770 | G97: =SUM(G88:G96) -> 31.94 | H97: =SUM(H88:H96) -> 33.29 | I97: =SUM(I88:I96) -> 85.93 | J97: =SUM(J88:J96) -> 778.24 | L97: =SUM(L88:L96) -> 130.88
A98: =A81 -> 1 | B98: =B81 -> 5 | C98: Итого за день: | F98: =F87+F97 -> 1330 | G98: =G87+G97 -> 46.74 | H98: =H87+H97 -> 52.05 | I98: =I87+I97 -> 160.68 | J98: =J87+J97 -> 1395.41 | L98: =L87+L97 -> 234.64
A99: 2 | B99: 1 | C99: Завтрак | D99: гор.блюдо | E99: вареники из полуфабриката | F99: 200 | G99: 0.03 | H99: 5.44 | I99: 0.05 | J99: 39.46 | K99: 395 | L99: 57.96
D100: сладкое | E100: вафли | F100: 50 | G100: 1.4 | H100: 1.65 | I100: 32.65 | J100: 177 | L100: 25.21
D101: гор.напиток | E101: чай с сахаром | F101: 200 | G101: 0.26 | H101: 0.07 | I101: 13.48 | J101: 58.05 | K101: 430 | L101: 2.75
D102: хлеб | L102: 5.46
D103: фрукты | E103: фрукт | F103: 200 | G103: 3 | H103: 1 | I103: 27.74 | J103: 192 | L103: 54
D106: итого | F106: =SUM(F99:F105) -> 650 | G106: =SUM(G99:G105) -> 4.69 | H106: =SUM(H99:H105) -> 8.16 | I106: =SUM(I99:I105) -> 73.92 | J106: =SUM(J99:J105) -> 466.51 | L106: =SUM(L99:L105) -> 145.38
A107: =A99 -> 2 | B107: =B99 -> 1 | C107: Обед | D107: закуска | E107: огурец свежий | F107: 80 | G107: 0.64 | H107: 0.08 | I107: 2 | J107: 11.2 | L107: 5.93
D108: 1 блюдо | E108: суп с крупой и мясными фрикадельками | F108: 250 | G108: 9.36 | H108: 9.11 | I108: 12.04 | J108: 167.11 | K108: 104 | L108: 30.16
D109: 2 блюдо | E109: оладьи из печени | F109: 90 | G109: 15.11 | H109: 21.75 | I109: 5.48 | J109: 295.42 | K109: 282 | L109: 30.48
D110: гарнир | E110: каша рассыпчатая рисовая | F110: 150 | G110: 3.48 | H110: 8 | I110: 26.43 | J110: 231.6 | K110: 171.2 | L110: 11.62
D111: напиток | E111: сок яблочный | F111: 200 | G111: 1 | H111: 0.2 | I111: 19.17 | J111: 92 | K111: 442 | L111: 31.6
D112: хлеб бел. | E112: пшеничный | F112: 30 | G112: 2.28 | H112: 0.24 | I112: 14.76 | J112: 70.5 | L112: 5.46
D113: хлеб черн. | E113: ржаной | F113: 30 | G113: 2.55 | H113: 0.99 | I113: 14.49 | J113: 77.7 | L113: 5.34
D116: итого | F116: =SUM(F107:F115) -> 830 | G116: =SUM(G107:G115) -> 34.42 | H116: =SUM(H107:H115) -> 40.37 | I116: =SUM(I107:I115) -> 94.37 | J116: =SUM(J107:J115) -> 945.53 | L116: =SUM(L107:L115) -> 120.59
A117: =A99 -> 2 | B117: =B99 -> 1 | C117: Итого за день: | F117: =F106+F116 -> 1480 | G117: =G106+G116 -> 39.11 | H117: =H106+H116 -> 48.53 | I117: =I106+I116 -> 168.29 | J117: =J106+J116 -> 1412.04 | L117: =L106+L116 -> 265.97
A118: 2 | B118: 2 | C118: Завтрак | D118: гор.блюдо | E118: плов | F118: 240 | G118: 26.77 | H118: 17.28 | I118: 39.92 | J118: 489.9 | K118: 311 | L118: 62.56
D120: гор.напиток | E120: чай с сахаром | F120: 200 | G120: 0 | H120: 0 | I120: 14.52 | J120: 58.05 | K120: 430 | L120: 2.75
D121: хлеб | E121: пшеничный | F121: 25 | G121: 1.9 | H121: 0.2 | I121: 12.3 | J121: 58.75 | L121: 5.46
D122: фрукты | E122: фрукт | F122: 200 | G122: 0.78 | H122: 0.78 | I122: 17.01 | J122: 91.18 | K122: 338 | L122: 43.4
D125: итого | F125: =SUM(F118:F124) -> 665 | G125: =SUM(G118:G124) -> 29.45 | H125: =SUM(H118:H124) -> 18.26 | I125: =SUM(I118:I124) -> 83.75 | J125: =SUM(J118:J124) -> 697.88 | L125: =SUM(L118:L124) -> 114.17
A126: =A118 -> 2 | B126: =B118 -> 2 | C126: Обед
A127: 2 | B127: 2 | C127: Обед | D127: 1 блюдо | E127: Суп пшенный с мясом /кулеш/ | F127: 250 | G127: 11.5 | H127: 5.2 | I127: 17.7 | J127: 164 | K127: 110 | L127: 32.5
D128: 2 блюдо | E128: говядина тушенная с капустой | F128: 240 | G128: 25.5 | H128: 25.6 | I128: 8.8 | J128: 369.3 | K128: 262 | L128: 79.8
D129: гарнир
D130: напиток | E130: сок фруктовый | F130: 200 | G130: 1 | H130: 0.2 | I130: 19.17 | J130: 92 | K130: 442 | L130: 31.6
D131: хлеб бел. | E131: пшеничный | F131: 30 | G131: 2.28 | H131: 0.24 | I131: 14.76 | J131: 70.5 | L131: 5.45
D132: хлеб черн. | E132: ржаной | F132: 30 | G132: 2.55 | H132: 0.99 | I132: 14.49 | J132: 77.7 | L132: 5.34
D135: итого | F135: =SUM(F126:F134) -> 750 | G135: =SUM(G126:G134) -> 42.83 | H135: =SUM(H126:H134) -> 32.23 | I135: =SUM(I126:I134) -> 74.92 | J135: =SUM(J126:J134) -> 773.5 | L135: =SUM(L126:L134) -> 154.69
A136: =A118 -> 2 | B136: =B118 -> 2 | C136: Итого за день: | F136: =F125+F135 -> 1415 | G136: =G125+G135 -> 72.28 | H136: =H125+H135 -> 50.49 | I136: =I125+I135 -> 158.67 | J136: =J125+J135 -> 1471.38 | L136: =L125+L135 -> 268.86
A137: 2 | B137: 3 | C137: Завтрак | D137: гор.блюдо | E137: макаронные изделия отварные с сыром | F137: 180 | G137: 8.52 | H137: 14.08 | I137: 32.52 | J137: 317.2 | K137: 210 | L137: 27.59
D139: закуска | E139: икра кабачковая консервированная | F139: 60 | G139: 0.77 | H139: 2.61 | I139: 3.97 | J139: 43.01 | K139: 73 | L139: 6.5
D140: гор.напиток | E140: чай с сахаром и лимоном | F140: 205 | G140: 0.24 | H140: 0 | I140: 16.12 | J140: 65.95 | K140: 431 | L140: 29.6
D141: хлеб | E141: батон | F141: 25 | G141: 1.87 | H141: 0.7 | I141: 12.85 | J141: 65.5 | L141: 4.5
D142: фрукты | E142: фрукт | F142: 200 | G142: 1.2 | H142: 0.3 | I142: 11.25 | J142: 57 | L142: 29.25
D145: итого | F145: =SUM(F137:F144) -> 670 | G145: =SUM(G137:G144) -> 12.6 | H145: =SUM(H137:H144) -> 17.69 | I145: =SUM(I137:I144) -> 76.71 | J145: =SUM(J137:J144) -> 548.66 | L145: =SUM(L137:L144) -> 97.44
A146: =A137 -> 2 | B146: =B137 -> 3 | C146: Обед | D146: закуска | E146: салат "степной" из разных овощей | F146: 60 | G146: 2.16 | H146: 6.12 | I146: 4.68 | J146: 82.2 | K146: 30 | L146: 12.85
D147: 1 блюдо | E147: суп с рыбными консервами | F147: 250 | G147: 9.03 | H147: 3.36 | I147: 16.52 | J147: 132.87 | K147: 87 | L147: 32.8
D148: 2 блюдо | E148: шницель натуральный | F148: 90 | G148: 14.68 | H148: 21.13 | I148: 7.23 | J148: 277.54 | K148: 267 | L148: 49.04
D149: гарнир | E149: каша гречневая рассыпчатая | F149: 150 | G149: 3.48 | H149: 8 | I149: 36.43 | J149: 231.6 | K149: 171.2 | L149: 13.18
D150: напиток | E150: кисель | F150: 200 | G150: 0.1 | H150: 0.1 | I150: 27.9 | J150: 113 | K150: 411 | L150: 8.82
D151: хлеб бел. | E151: пшеничный | F151: 30 | G151: 2.28 | H151: 0.24 | I151: 14.76 | J151: 70.5 | L151: 5.46
D152: хлеб черн. | E152: ржаной | F152: 30 | G152: 2.55 | H152: 0.99 | I152: 14.49 | J152: 77.7 | L152: 5.34
D155: итого | F155: =SUM(F146:F154) -> 810 | G155: =SUM(G146:G154) -> 34.28 | H155: =SUM(H146:H154) -> 39.94 | I155: =SUM(I146:I154) -> 122.01 | J155: =SUM(J146:J154) -> 985.41 | L155: =SUM(L146:L154) -> 127.49
A156: =A137 -> 2 | B156: =B137 -> 3 | C156: Итого за день: | F156: =F145+F155 -> 1480 | G156: =G145+G155 -> 46.88 | H156: =H145+H155 -> 57.63 | I156: =I145+I155 -> 198.72 | J156: =J145+J155 -> 1534.07 | L156: =L145+L155 -> 224.93
A157: 2 | B157: 4 | C157: Завтрак | D157: гор.блюдо | E157: каша вязкая молочная из пшенной, овсяной, гречневой и других круп | F157: 200 | G157: 8.54 | H157: 9.23 | I157: 33.39 | J157: 283.06 | K157: 173 | L157: 28
D158: хлеб | E158: батон с колбасой | F158: 45 | G158: 4.25 | H158: 4.47 | I158: 12.56 | J158: 113.98 | K158: 6 | L158: 18.99
D159: гор.напиток | E159: чай с сахаром и лимоном | F159: 205 | G159: 0.16 | H159: 0.01 | I159: 14.92 | J159: 65.95 | K159: 377 | L159: 29.6
D160: фрукты | E160: фрукт | F160: 200 | G160: 0.8 | H160: 0.8 | I160: 14.6 | J160: 94 | L160: 53.77
D163: итого | F163: =SUM(F157:F162) -> 650 | G163: =SUM(G157:G162) -> 13.75 | H163: =SUM(H157:H162) -> 14.51 | I163: =SUM(I157:I162) -> 75.47 | J163: =SUM(J157:J162) -> 556.99 | L163: =SUM(L157:L162) -> 130.36
A164: =A157 -> 2 | B164: 4 | C164: Обед | D164: закуска | E164: салат из соленных огурцов и слуком | F164: 60 | G164: 0.52 | H164: 3.07 | I164: 1.57 | J164: 36.98 | K164: 21 | L164: 10.12
D165: 1 блюдо | E165: суп картофельный с клецками | F165: 250 | G165: 2.87 | H165: 4.96 | I165: 14.07 | K165: 118.2 | L165: 31.1
D166: 2 блюдо | E166: гуляш из отварной говядины | F166: 90 | G166: 13.39 | H166: 15.44 | I166: 2.76 | J166: 203.6 | K166: 260 | L166: 43
D167: гарнир | E167: пюре из бобовых с маслом | F167: 150 | G167: 19.06 | H167: 7.01 | I167: 39.85 | J167: 298.91 | K167: 199 | L167: 15.3
D168: напиток | E168: компот из смеси сухофруктов | F168: 200 | G168: 0.6 | H168: 0.1 | I168: 31.7 | J168: 131 | K168: 402 | L168: 7.76
D169: хлеб бел. | E169: пшеничный | F169: 30 | G169: 2.28 | H169: 0.24 | I169: 14.76 | J169: 70.5 | L169: 5.46
D170: хлеб черн. | E170: ржаной | F170: 30 | G170: 2.55 | H170: 0.99 | I170: 14.49 | J170: 77.7 | L170: 5.34
D173: итого | F173: =SUM(F164:F172) -> 810 | G173: =SUM(G164:G172) -> 41.27 | H173: =SUM(H164:H172) -> 31.81 | I173: =SUM(I164:I172) -> 119.2 | J173: =SUM(J164:J172) -> 818.69 | L173: =SUM(L164:L172) -> 118.08
A174: =A157 -> 2 | B174: =B157 -> 4 | C174: Итого за день: | F174: =F163+F173 -> 1460 | G174: =G163+G173 -> 55.02 | H174: =H163+H173 -> 46.32 | I174: =I163+I173 -> 194.67 | J174: =J163+J173 -> 1375.68 | L174: =L163+L173 -> 248.44
A175: 2 | B175: 5 | C175: Завтрак | D175: гор.блюдо | E175: оладьи | F175: 120 | G175: 6.08 | H175: 9.27 | I175: 36.24 | J175: 364.4 | K175: 444 | L175: 31.53
D176: сладкое | E176: молоко цельное сгущенное | F176: 30 | G176: 2.09 | H176: 2.4 | I176: 16.15 | J176: 95.44 | L176: 6.45
D177: гор.напиток | E177: кофейный напиток | F177: 200 | G177: 1.5 | H177: 1.3 | I177: 18.4 | J177: 107 | K177: 432 | L177: 11.79
D178: хлеб | E178: батон | F178: 25 | G178: 1.87 | H178: 0.7 | I178: 12.85 | J178: 65.95 | L178: 4.5
D179: фрукты | E179: фрукт | F179: 100 | G179: 0.9 | H179: 0.2 | I179: 8.1 | J179: 43 | L179: 20
D180: кисломол. | E180: йогурт фруктовый | F180: 150 | G180: 5.5 | H180: 3.6 | I180: 10.75 | J180: 130.5 | L180: 44.55
D182: итого | F182: =SUM(F175:F181) -> 625 | G182: =SUM(G175:G181) -> 17.94 | H182: =SUM(H175:H181) -> 17.47 | I182: =SUM(I175:I181) -> 102.49 | J182: =SUM(J175:J181) -> 806.29 | L182: =SUM(L175:L181) -> 118.82
A183: =A175 -> 2 | B183: =B175 -> 5 | C183: Обед | D183: закуска | E183: салат из кукурузы /консервированной/ | F183: 60 | G183: 1.68 | H183: 1.91 | I183: 3.53 | J183: 37.91 | K183: 12 | L183: 28.79
D184: 1 блюдо | E184: щи из свежей капусты с картофелем | F184: 250 | G184: 6.54 | H184: 8.12 | I184: 9.45 | J184: 138.13 | K184: 84 | L184: 40.2
D185: 2 блюдо | E185: мясо птицы порционное | F185: 90 | G185: 21.7 | H185: 33.21 | I185: 0.07 | J185: 385.4 | K185: 293 | L185: 50.14
D186: гарнир | E186: пюре картофельное | F186: 150 | G186: 3.1 | H186: 17.1 | I186: 20.95 | J186: 250.3 | K186: 128 | L186: 30
D187: напиток | E187: компот из свежих ягод | F187: 200 | G187: 0.15 | H187: 0.06 | I187: 20.44 | J187: 85.55 | K187: 375 | L187: 15.2
D188: хлеб бел. | E188: пшеничный | F188: 30 | G188: 2.28 | H188: 0.24 | I188: 14.76 | J188: 70.5 | L188: 5.46
D189: хлеб черн. | E189: ржаной | F189: 30 | G189: 2.55 | H189: 0.99 | I189: 14.49 | J189: 77.7 | L189: 5.34
D192: итого | F192: =SUM(F183:F191) -> 810 | G192: =SUM(G183:G191) -> 38 | H192: =SUM(H183:H191) -> 61.63 | I192: =SUM(I183:I191) -> 83.69 | J192: =SUM(J183:J191) -> 1045.49 | L192: =SUM(L183:L191) -> 175.13
A193: =A175 -> 2 | B193: =B175 -> 5 | C193: Итого за день: | F193: =F182+F192 -> 1435 | G193: =G182+G192 -> 55.94 | H193: =H182+H192 -> 79.1 | I193: =I182+I192 -> 186.18 | J193: =J182+J192 -> 1851.78 | L193: =L182+L192 -> 293.95
C194: Среднее значение за период: | F194: =(F23+F42+F60+F80+F98+F117+F136+F156+F174+F193)/(IF(F23=0,0,1)+IF(F42=0,0,1)+IF(F60=0,0,1)+IF(F80=0,0,1)+IF(F98=0,0,1)+IF(F117=0,0,1)+IF(F136=0,0,1)+IF(F156=0,0,1)+IF(F174=0,0,1)+IF(F193=0,0,1)) -> 1436.5 | G194: =(G23+G42+G60+G80+G98+G117+G136+G156+G174+G193)/(IF(G23=0,0,1)+IF(G42=0,0,1)+IF(G60=0,0,1)+IF(G80=0,0,1)+IF(G98=0,0,1)+IF(G117=0,0,1)+IF(G136=0,0,1)+IF(G156=0,0,1)+IF(G174=0,0,1)+IF(G193=0,0,1)) -> 51.933 | H194: =(H23+H42+H60+H80+H98+H117+H136+H156+H174+H193)/(IF(H23=0,0,1)+IF(H42=0,0,1)+IF(H60=0,0,1)+IF(H80=0,0,1)+IF(H98=0,0,1)+IF(H117=0,0,1)+IF(H136=0,0,1)+IF(H156=0,0,1)+IF(H174=0,0,1)+IF(H193=0,0,1)) -> 52.779 | I194: =(I23+I42+I60+I80+I98+I117+I136+I156+I174+I193)/(IF(I23=0,0,1)+IF(I42=0,0,1)+IF(I60=0,0,1)+IF(I80=0,0,1)+IF(I98=0,0,1)+IF(I117=0,0,1)+IF(I136=0,0,1)+IF(I156=0,0,1)+IF(I174=0,0,1)+IF(I193=0,0,1)) -> 184.078 | J194: =(J23+J42+J60+J80+J98+J117+J136+J156+J174+J193)/(IF(J23=0,0,1)+IF(J42=0,0,1)+IF(J60=0,0,1)+IF(J80=0,0,1)+IF(J98=0,0,1)+IF(J117=0,0,1)+IF(J136=0,0,1)+IF(J156=0,0,1)+IF(J174=0,0,1)+IF(J193=0,0,1)) -> 1491.642 | L194: =(L23+L42+L60+L80+L98+L117+L136+L156+L174+L193)/(IF(L23=0,0,1)+IF(L42=0,0,1)+IF(L60=0,0,1)+IF(L80=0,0,1)+IF(L98=0,0,1)+IF(L117=0,0,1)+IF(L136=0,0,1)+IF(L156=0,0,1)+IF(L174=0,0,1)+IF(L193=0,0,1)) -> 263.149
